fUSD/lending_fUSD_20250113
["ID","MTS","AMOUNT","RATE_DAILY","PERIOD"]
[348700556,1736727041467,-500.0,9.995e-05,2]
[348700557,1736727041477,-500.0,9.995e-05,2]
[348700558,1736727041486,-680.21,9.995e-05,2]
[348700559,1736727041495,-500.0,9.995e-05,2]
[348700560,1736727041505,-500.0,9.995e-05,2]
[348700561,1736727041514,-500.0,9.995e-05,2]
[348700562,1736727041523,-500.0,9.995e-05,2]
[348700563,1736727041532,-500.0,9.995e-05,2]
[348700564,1736727041541,-1390.21,9.995e-05,2]
[348700565,1736727041550,-500.0,9.995e-05,2]
[348700566,1736727041560,-500.0,9.995e-05,2]
[348700567,1736727041569,-500.0,9.995e-05,2]
[348700568,1736727041578,-500.0,9.995e-05,2]
[348700569,1736727041588,-500.0,9.995e-05,2]
[348700570,1736727041597,-500.0,9.995e-05,2]
[348700571,1736727041606,-500.0,9.995e-05,2]
[348700572,1736727041615,-500.0,9.995e-05,2]
[348700573,1736727041624,-500.0,9.995e-05,2]
[348700574,1736727041633,-500.0,9.995e-05,2]
[348700575,1736727041642,-851.85,9.995e-05,2]
[348700576,1736727041652,-500.0,9.995e-05,2]
[348700577,1736727041661,-500.0,9.995e-05,2]
[348700578,1736727041674,-503.63,9.995e-05,2]
[348700579,1736727041684,-2088.29,9.995e-05,2]
[348700580,1736727041693,-500.0,9.995e-05,2]
[348700581,1736727041702,-500.0,9.995e-05,2]
[348700582,1736727041889,-500.0,9.995e-05,2]
[348700583,1736727041899,-500.0,9.995e-05,2]
[348700584,1736727041908,-2207.3,9.995e-05,2]
[348700585,1736727041917,-645.0072589,9.995e-05,2]
[348700586,1736727041927,-500.0,9.995e-05,2]
[348700587,1736727041937,-155.87,9.995e-05,2]
[348700588,1736727041946,-500.0,9.995e-05,2]
[348700589,1736727041955,-500.0,9.995e-05,2]
[348700590,1736727041965,-500.0,9.995e-05,2]
[348700591,1736727041974,-500.0,9.995e-05,2]
[348700592,1736727041983,-500.0,9.995e-05,2]
[348700593,1736727041993,-500.0,9.995e-05,2]
[348700594,1736727042002,-500.0,9.995e-05,2]
[348700595,1736727042011,-902.21,9.995e-05,2]
[348700596,1736727042021,-500.0,9.995e-05,2]
[348700597,1736727042030,-548.52,9.995e-05,2]
[348700598,1736727042042,-500.0,9.995e-05,2]
[348700599,1736727042052,-500.0,9.995e-05,2]
[348700600,1736727042063,-500.0,9.995e-05,2]
[348700601,1736727042072,-500.0,9.995e-05,2]
[348700602,1736727042083,-2078.81,9.995e-05,2]
[348700603,1736727042094,-500.0,9.995e-05,2]
[348700604,1736727042104,-514.83,9.995e-05,2]
[348700605,1736727042114,-500.0,9.995e-05,2]
[348700606,1736727042123,-500.0,9.995e-05,2]
[348700607,1736727042134,-500.0,9.995e-05,2]
[348700608,1736727042143,-500.0,9.995e-05,2]
[348700609,1736727042152,-500.0,9.995e-05,2]
[348700610,1736727042161,-500.0,9.995e-05,2]
[348700611,1736727042170,-607.65,9.995e-05,2]
[348700612,1736727042179,-500.0,9.995e-05,2]
[348700613,1736727042188,-500.0,9.995e-05,2]
[348700614,1736727042196,-500.0,9.995e-05,2]
[348700615,1736727042205,-586.8,9.995e-05,2]
[348700616,1736727042214,-250.38758051,9.995e-05,2]
[348700617,1736727042223,-500.0,9.995e-05,2]
[348700618,1736727042233,-500.0,9.995e-05,2]
[348700619,1736727042242,-973.35,9.995e-05,2]
[348700620,1736727042251,-500.0,9.995e-05,2]
[348700621,1736727042260,-500.0,9.995e-05,2]
[348700622,1736727042269,-500.0,9.995e-05,2]
[348700623,1736727042278,-500.0,9.995e-05,2]
[348700624,1736727042287,-500.0,9.995e-05,2]
[348700625,1736727042296,-767.01,9.995e-05,2]
[348700626,1736727042305,-500.0,9.995e-05,2]
[348700627,1736727042314,-562.52,9.995e-05,2]
[348700628,1736727042323,-22.96562343,9.995e-05,2]
[348700629,1736727042376,-1793.28437657,9.995e-05,2]
[348700630,1736727042386,-898.1,9.995e-05,2]
[348700631,1736727042395,-1138.74,9.995e-05,2]
[348700632,1736727042404,-500.0,9.995e-05,2]
[348700633,1736727042413,-168.286528,9.996e-05,2]
[348700634,1736727042422,-159.422232,9.996e-05,2]
[348700635,1736727042431,-500.0,9.996e-05,2]
[348700636,1736727042440,-500.98348293,9.996e-05,2]
[348700637,1736727042449,-500.58289113,9.996e-05,2]
[348700638,1736727042458,-501.55184241,9.996e-05,2]
[348700639,1736727042467,-525.14196194,9.996e-05,2]
[348700640,1736727042476,-501.18855224,9.996e-05,2]
[348700641,1736727042485,-179.69870424,9.996e-05,2]
[348700642,1736727042494,-502.1104876,9.996e-05,2]
[348700643,1736727042504,-502.1991438,9.996e-05,2]
[348700644,1736727042513,-502.12897634,9.996e-05,2]
[348700645,1736727042522,-501.64386903,9.996e-05,2]
[348700646,1736727042531,-500.23523175,9.996e-05,2]
[348700647,1736727042540,-518.45024403,9.996e-05,2]
[348700648,1736727042549,-500.81883492,9.996e-05,2]
[348700649,1736727042558,-500.48975667,9.996e-05,2]
[348700650,1736727042567,-500.45967866,9.996e-05,2]
[348700651,1736727042576,-501.04386672,9.996e-05,2]
[348700652,1736727042586,-500.0,9.996e-05,2]
[348700653,1736727042595,-500.0,9.996e-05,2]
[348700654,1736727042604,-500.0,9.996e-05,2]
[348700655,1736727042613,-252.71006306,9.996e-05,2]
[348700656,1736727042622,-929.00384977,9.996e-05,2]
[348700657,1736727042889,-70.99615023,9.996e-05,2]
[348700658,1736727042898,-500.88864951,9.996e-05,2]
[348700659,1736727042908,-500.0,9.996e-05,2]
[348700660,1736727042917,-350.03996141,9.996e-05,2]
[348700661,1736727042926,-500.75073556,9.996e-05,2]
[348700662,1736727042935,-501.92496728,9.996e-05,2]
[348700663,1736727042944,-504.23125441,9.996e-05,2]
[348700664,1736727042953,-500.0,9.996e-05,2]
[348700665,1736727042962,-552.42,9.996e-05,2]
[348700666,1736727042972,-500.0,9.996e-05,2]
[348700667,1736727042982,-500.0,9.996e-05,2]
[348700668,1736727042991,-500.0,9.996e-05,2]
[348700669,1736727043000,-500.0,9.996e-05,2]
[348700670,1736727043014,-256.24700069,9.996e-05,2]
[348700671,1736727043025,-1.71226192,9.996e-05,2]
[348700672,1736727043034,-500.0,9.996e-05,2]
[348700673,1736727043045,-500.0,9.996e-05,2]
[348700674,1736727043054,-500.0,9.996e-05,2]
[348700675,1736727043063,-538.49520279,9.996e-05,2]
[348700676,1736727043073,-500.0,9.996e-05,2]
[348700677,1736727043083,-500.0,9.996e-05,2]
[348700678,1736727043092,-219.73205715,9.996e-05,2]
[348700679,1736727043112,-280.26794285,9.996e-05,2]
[348700680,1736727043122,-500.0,9.996e-05,2]
[348700681,1736727043131,-500.0,9.996e-05,2]
[348700682,1736727043141,-502.37052831,9.996e-05,2]
[348700683,1736727043150,-500.0,9.996e-05,2]
[348700684,1736727043159,-500.0,9.996e-05,2]
[348700685,1736727043169,-500.0,9.996e-05,2]
[348700686,1736727043178,-500.0,9.996e-05,2]
[348700687,1736727043186,-500.0,9.996e-05,2]
[348700689,1736727043196,-510.17,9.996e-05,2]
[348700691,1736727043207,-500.0,9.996e-05,2]
[348700692,1736727043218,-358.51,9.996e-05,2]
[348700693,1736727043229,-500.0,9.996e-05,2]
[348700694,1736727043238,-500.0,9.996e-05,2]
[348700695,1736727043251,-468.65,9.996e-05,2]
[348700696,1736727043260,-500.0,9.996e-05,2]
[348700697,1736727043269,-509.60431067,9.996e-05,2]
[348700698,1736727043278,-537.6,9.996e-05,2]
[348700699,1736727043291,-500.0,9.996e-05,2]
[348700700,1736727043301,-500.0,9.996e-05,2]
[348700701,1736727043311,-500.0,9.996e-05,2]
[348700702,1736727043321,-500.0,9.996e-05,2]
[348700703,1736727043331,-500.0,9.996e-05,2]
[348700704,1736727043341,-503.88968478,9.996e-05,2]
[348700705,1736727043351,-531.12042523,9.996e-05,2]
[348700706,1736727043360,-500.0,9.996e-05,2]
[348700707,1736727043369,-500.0,9.996e-05,2]
[348700708,1736727043378,-500.0,9.996e-05,2]
[348700709,1736727043387,-500.0,9.996e-05,2]
[348700710,1736727043396,-596.52458854,9.996e-05,2]
[348700711,1736727043404,-500.0,9.996e-05,2]
[348700712,1736727043413,-500.0,9.996e-05,2]
[348700713,1736727043422,-500.0,9.996e-05,2]
[348700714,1736727043431,-500.0,9.996e-05,2]
[348700715,1736727043440,-500.0,9.996e-05,2]
[348700716,1736727043450,-500.0,9.996e-05,2]
[348700717,1736727043460,-500.0,9.996e-05,2]
[348700718,1736727043470,-500.0,9.996e-05,2]
[348700719,1736727043481,-504.12022236,9.996e-05,2]
[348700720,1736727043491,-500.0,9.996e-05,2]
[348700721,1736727043500,-219.94,9.996e-05,2]
[348700722,1736727043509,-500.0,9.996e-05,2]
[348700723,1736727043518,-500.0,9.996e-05,2]
[348700724,1736727043529,-2051.84,9.996e-05,2]
[348700725,1736727043538,-884.25,9.996e-05,2]
[348700726,1736727043548,-1346.24,9.996e-05,2]
[348700727,1736727043559,-530.04,9.996e-05,2]
[348700728,1736727043569,-858.76,9.996e-05,2]
[348700729,1736727043579,-500.0,9.996e-05,2]
[348700730,1736727043588,-500.0,9.996e-05,2]
[348700731,1736727043597,-1142.46,9.996e-05,2]
[348700732,1736727043606,-500.0,9.996e-05,2]
[348700733,1736727043616,-1496.35563359,9.996e-05,2]
[348700734,1736727043625,-1264.75,9.997e-05,2]
[348700735,1736727043637,-500.0,9.997e-05,2]
[348700736,1736727043647,-526.79,9.997e-05,2]
[348700737,1736727043656,-760.11,9.997e-05,2]
[348700738,1736727043666,-823.3,9.997e-05,2]
[348700739,1736727043679,-500.0,9.997e-05,2]
[348700740,1736727043687,-1000.0,9.997e-05,2]
[348700742,1736727043697,-668.36,9.997e-05,2]
[348700744,1736727043707,-500.0,9.997e-05,2]
[348700746,1736727043716,-1202.09,9.997e-05,2]
[348700747,1736727043725,-1043.38,9.997e-05,2]
[348700748,1736727043734,-500.0,9.999e-05,2]
[348700749,1736727043745,-500.0,9.999e-05,2]
[348700750,1736727043754,-500.0,9.999e-05,2]
[348700751,1736727043764,-500.0,9.999e-05,2]
[348700752,1736727043773,-500.0,9.999e-05,2]
[348700753,1736727043782,-500.0,9.999e-05,2]
[348700754,1736727043791,-231.31198979,9.999e-05,2]
[348700755,1736727043800,-1112.74139546,9.999e-05,3]
[348700756,1736727043809,-1112.74139546,9.999e-05,3]
[348700757,1736727043818,-774.84,9.999e-05,2]
[348700758,1736727043828,-1112.74139546,9.999e-05,3]
[348700759,1736727043837,-1112.74139546,9.999e-05,3]
[348700760,1736727043846,-687.44,9.999e-05,2]
[348700761,1736727043855,-500.0,9.999e-05,2]
[348700762,1736727043864,-500.0,9.999e-05,2]
[348700763,1736727043874,-817.27,9.999e-05,2]
[348700764,1736727043883,-656.31,9.999e-05,2]
[348700765,1736727043892,-1112.74139544,9.999e-05,3]
[348700766,1736727043901,-907.21,9.999e-05,2]
[348700767,1736727043910,-500.0,9.999e-05,2]
[348700768,1736727043919,-426.27949663,9.999e-05,2]
[348700769,1736727043928,-1112.74139546,9.999e-05,3]
[348700770,1736727043938,-567.16,9.999e-05,2]
[348700771,1736727043947,-960.51,9.999e-05,2]
[348700772,1736727043956,-1054.29,9.999e-05,2]
[348700773,1736727043965,-1112.74139546,9.999e-05,3]
[348700774,1736727043973,-500.0,9.999e-05,2]
[348700775,1736727043982,-500.0,9.999e-05,2]
[348700776,1736727043991,-158.04,9.999e-05,2]
[348700777,1736727044000,-1112.74139546,9.999e-05,3]
[348700778,1736727044010,-1112.74139546,9.999e-05,3]
[348700779,1736727044072,-1009.53,9.999e-05,2]
[348700780,1736727044081,-1489.54,9.999e-05,2]
[348700781,1736727044090,-3214.17,9.999e-05,2]
[348700782,1736727044100,-1112.74139546,9.999e-05,3]
[348700783,1736727044110,-1816.25,9.999e-05,2]
[348700784,1736727044119,-1816.25,9.999e-05,2]
[348700785,1736727044128,-1816.25,9.999e-05,2]
[348700786,1736727044138,-1816.25,9.999e-05,2]
[348700787,1736727044147,-1816.25,9.999e-05,2]
[348700788,1736727044156,-1816.25,9.999e-05,2]
[348700789,1736727044166,-1816.25,9.999e-05,2]
[348700790,1736727044175,-1816.25,9.999e-05,2]
[348700791,1736727044185,-1816.25,9.999e-05,2]
[348700792,1736727044194,-1816.25,9.999e-05,2]
[348700793,1736727044203,-1816.25,9.999e-05,2]
[348700794,1736727044212,-1816.25,9.999e-05,2]
[348700795,1736727044221,-1816.25,9.999e-05,2]
[348700796,1736727044230,-1816.25,9.999e-05,2]
[348700797,1736727044239,-1816.25,9.999e-05,2]
[348700798,1736727044247,-1816.25,9.999e-05,2]
[348700799,1736727044257,-1816.25,9.999e-05,2]
[348700800,1736727044267,-1816.25,9.999e-05,2]
[348700801,1736727044275,-1816.25,9.999e-05,2]
[348700802,1736727044284,-1816.25,9.999e-05,2]
[348700803,1736727044293,-1816.25,9.999e-05,2]
[348700804,1736727044302,-1816.25,9.999e-05,2]
[348700805,1736727044311,-1816.27864511,9.999e-05,2]
[348700806,1736727044320,-694.36,9.999e-05,2]
[348700807,1736727044329,-1112.74139545,9.999e-05,3]
[348700808,1736727044338,-500.0,9.999e-05,2]
[348700809,1736727044347,-505.41,9.999e-05,2]
[348700810,1736727044357,-321.44301265,9.999e-05,2]
[348700811,1736727044366,-226416.05092216,0.0001,2]
[348700812,1736727044542,-500.0,9.991e-05,2]
[348700813,1736727044551,-838891.63023172,0.0001,2]
[348700814,1736727044560,-7015.0882985,0.0001,2]
[348700815,1736727044569,-331.62505289,0.0001,2]
[348700816,1736727044578,-7312.62577763,0.0001,2]
[348700817,1736727044588,-653.73425882,0.0001,2]
[348700818,1736727044597,-16426483.73907384,0.0001,2]
[348700819,1736727044609,-21589.58217172,0.0001,2]
[348700820,1736727044619,-14647.5,0.0001,2]
[348700821,1736727044631,-920070.12373897,0.0001,2]
[348700822,1736727044857,-6243.6889677,0.0001,2]
[348700823,1736727044868,-310.5,0.0001,2]
[348700824,1736727044880,-3606.04086476,0.0001,2]
[348700825,1736727044899,-424164.53653893,0.0001,2]
[348700826,1736727044909,-272160.34004677,0.0001,2]
[348700827,1736727044919,-407.28035104,0.0001,2]
[348700828,1736727044931,-500.0,0.0001,2]
[348700829,1736727044941,-3010.74112746,0.0001,2]
[348700830,1736727044951,-319.0,0.0001,2]
[348700831,1736727044961,-3000.0,0.0001,2]
[348700832,1736727044971,-253.41,0.0001,2]
[348700833,1736727044979,-500.21382716,0.0001,2]
[348700834,1736727044988,-897.13739692,0.0001,2]
[348700835,1736727044997,-945.8962506,0.0001,2]
[348700836,1736727045009,-28281.61022586,0.0001,2]
[348700837,1736727045018,-5000.82447811,0.0001,2]
[348700838,1736727045026,-201.7952744,0.0001,2]
[348700839,1736727045035,-4253.38902746,0.00010073,4]
[348700840,1736727045044,-339.66,0.00010091,2]
[348700841,1736727045053,-404.06,0.00010133,2]
[348700842,1736727045062,-500.0,0.00010136,2]
[348700843,1736727045071,-182.42,0.00010137,2]
[348700844,1736727045080,-463.37,0.00010137,2]
[348700845,1736727045089,-381.53,0.00010137,2]
[348700846,1736727045098,-420.0,0.00010251,2]
[348700847,1736727045107,-500.0,0.00010265,2]
[348700848,1736727045115,-927.13,0.00010265,2]
[348700849,1736727045125,-2502.78,0.00010265,2]
[348700850,1736727045134,-500.0,0.00010265,2]
[348700851,1736727045142,-500.0,0.00010265,2]
[348700852,1736727045151,-522.99,0.00010265,2]
[348700853,1736727045160,-566.89,0.00010265,2]
[348700854,1736727045169,-893.8,0.00010265,2]
[348700855,1736727045178,-500.0,0.00010265,2]
[348700856,1736727045187,-1970.36,0.00010265,2]
[348700857,1736727045197,-500.0,0.00010265,2]
[348700858,1736727045206,-1370.66,0.00010265,2]
[348700859,1736727045215,-539.57,0.00010265,2]
[348700860,1736727045224,-1331.9,0.00010265,2]
[348700861,1736727045233,-964.02,0.00010265,2]
[348700862,1736727045242,-500.0,0.00010265,2]
[348700863,1736727045251,-880.61,0.00010265,2]
[348700864,1736727045262,-500.0,0.00010265,2]
[348700865,1736727045271,-500.0,0.00010265,2]
[348700866,1736727045279,-562.92,0.00010265,2]
[348700867,1736727045288,-1494.44,0.00010265,2]
[348700868,1736727045297,-628.89,0.00010265,2]
[348700869,1736727045306,-500.0,0.00010265,2]
[348700870,1736727045315,-500.0,0.00010265,2]
[348700871,1736727045324,-820.76,0.00010265,2]
[348700872,1736727045333,-612.88,0.00010265,2]
[348700873,1736727045342,-500.0,0.00010265,2]
[348700874,1736727045351,-500.0,0.00010265,2]
[348700875,1736727045360,-500.0,0.00010265,2]
[348700876,1736727045370,-1027.38,0.00010265,2]
[348700877,1736727045378,-500.0,0.00010265,2]
[348700878,1736727045387,-598.5,0.00010265,2]
[348700879,1736727045396,-500.0,0.00010265,2]
[348700880,1736727045405,-500.0,0.00010265,2]
[348700881,1736727045416,-534.57,0.00010265,2]
[348700882,1736727045425,-538.66,0.00010265,2]
[348700883,1736727045435,-628.2,0.00010265,2]
[348700884,1736727045445,-500.0,0.00010265,2]
[348700885,1736727045456,-524.03,0.00010265,2]
[348700886,1736727045466,-1147.37,0.00010265,2]
[348700887,1736727045475,-500.0,0.00010266,2]
[348700888,1736727045484,-500.0,0.00010266,2]
[348700889,1736727045493,-500.0,0.00010266,2]
[348700890,1736727045502,-500.0,0.00010266,2]
[348700891,1736727045512,-500.0,0.00010266,2]
[348700892,1736727045522,-500.0,0.00010266,2]
[348700893,1736727045531,-500.0,0.00010266,2]
[348700894,1736727045540,-500.0,0.00010266,2]
[348700895,1736727045549,-500.0,0.00010266,2]
[348700896,1736727045558,-504.02,0.00010266,2]
[348700897,1736727045567,-500.0,0.00010266,2]
[348700898,1736727045576,-500.0,0.00010266,2]
[348700899,1736727045585,-500.0,0.00010266,2]
[348700900,1736727045594,-500.0,0.00010266,2]
[348700901,1736727045603,-500.0,0.00010266,2]
[348700902,1736727045612,-500.0,0.00010266,2]
[348700903,1736727045621,-500.0,0.00010266,2]
[348700904,1736727045631,-500.0,0.00010266,2]
[348700905,1736727045639,-500.0,0.00010266,2]
[348700906,1736727045649,-500.0,0.00010266,2]
[348700907,1736727045659,-500.0,0.00010266,2]
[348700908,1736727045671,-500.0,0.00010266,2]
[348700909,1736727045681,-500.0,0.00010266,2]
[348700910,1736727045690,-500.0,0.00010266,2]
[348700911,1736727045699,-500.0,0.00010266,2]
[348700912,1736727045708,-500.0,0.00010266,2]
[348700913,1736727045718,-500.0,0.00010266,2]
[348700914,1736727045727,-500.0,0.00010266,2]
[348700915,1736727045735,-500.0,0.00010266,2]
[348700916,1736727045745,-500.0,0.00010266,2]
[348700917,1736727045754,-633.26,0.00010266,2]
[348700918,1736727045763,-500.0,0.00010266,2]
[348700919,1736727045772,-500.0,0.00010266,2]
[348700920,1736727045782,-500.0,0.00010266,2]
[348700921,1736727045791,-500.0,0.00010266,2]
[348700922,1736727045800,-500.0,0.00010266,2]
[348700923,1736727045809,-500.0,0.00010266,2]
[348700924,1736727045819,-506.77192852,0.00010266,2]
[348700925,1736727045828,-500.0,0.00010266,2]
[348700926,1736727045838,-500.0,0.00010266,2]
[348700927,1736727045847,-500.0,0.00010266,2]
[348700928,1736727045856,-581.1,0.00010266,2]
[348700929,1736727045866,-500.0,0.00010266,2]
[348700930,1736727045875,-263.41855643,0.00010266,2]
[348700931,1736727045886,-500.0,0.00010266,2]
[348700932,1736727045897,-500.0,0.00010266,2]
[348700933,1736727045905,-500.0,0.00010266,2]
[348700934,1736727045915,-500.0,0.00010266,2]
[348700935,1736727045924,-500.0,0.00010266,2]
[348700936,1736727045934,-500.0,0.00010266,2]
[348700937,1736727045944,-500.0,0.00010266,2]
[348700938,1736727045954,-503.16,0.00010266,2]
[348700939,1736727045963,-500.0,0.00010266,2]
[348700940,1736727045974,-541.45,0.00010266,2]
[348700941,1736727045984,-500.0,0.00010266,2]
[348700942,1736727045993,-500.0,0.00010266,2]
[348700943,1736727046003,-477.81916931,0.00010266,2]
[348700944,1736727046013,-387.19186097,0.00010266,2]
[348700945,1736727046022,-500.0,0.00010266,2]
[348700946,1736727046032,-500.0,0.00010266,2]
[348700947,1736727046041,-500.0,0.00010266,2]
[348700948,1736727046050,-510.77,0.00010266,2]
[348700949,1736727046059,-316.47,0.00010266,2]
[348700950,1736727046070,-500.0,0.00010266,2]
[348700951,1736727046079,-500.0,0.00010266,2]
[348700952,1736727046090,-500.0,0.00010266,2]
[348700953,1736727046101,-500.0,0.00010266,2]
[348700954,1736727046111,-500.0,0.00010266,2]
[348700955,1736727046121,-500.0,0.00010266,2]
[348700956,1736727046132,-220.70374364,0.00010266,2]
[348700957,1736727046141,-500.0,0.00010266,2]
[348700958,1736727046150,-500.0,0.00010266,2]
[348700959,1736727046159,-197.13199298,0.00010266,2]
[348700960,1736727046168,-500.0,0.00010266,2]
[348700961,1736727046177,-511.39601329,0.00010266,2]
[348700962,1736727046187,-500.0,0.00010266,2]
[348700963,1736727046196,-500.0,0.00010266,2]
[348700964,1736727046205,-270.74079784,0.00010266,2]
[348700965,1736727046214,-500.0,0.00010266,2]
[348700966,1736727046224,-500.0,0.00010266,2]
[348700967,1736727046233,-382.05342725,0.00010266,2]
[348700968,1736727046243,-500.0,0.00010266,2]
[348700969,1736727046252,-500.0,0.00010266,2]
[348700970,1736727046262,-500.0,0.00010266,2]
[348700971,1736727046271,-500.0,0.00010266,2]
[348700972,1736727046281,-500.0,0.00010266,2]
[348700973,1736727046291,-500.0,0.00010266,2]
[348700974,1736727046302,-500.0,0.00010266,2]
[348700975,1736727046311,-268.69627426,0.00010266,2]
[348700976,1736727046321,-500.0,0.00010266,2]
[348700977,1736727046331,-521.41,0.00010266,2]
[348700978,1736727046341,-500.0,0.00010266,2]
[348700979,1736727046351,-500.0,0.00010266,2]
[348700980,1736727046360,-500.0,0.00010266,2]
[348700981,1736727046369,-500.0,0.00010266,2]
[348700982,1736727046379,-500.0,0.00010266,2]
[348700983,1736727046388,-433.2923845,0.00010266,2]
[348700984,1736727046398,-500.0,0.00010266,2]
[348700985,1736727046408,-500.0,0.00010266,2]
[348700986,1736727046418,-500.0,0.00010266,2]
[348700987,1736727046428,-500.0,0.00010266,2]
[348700988,1736727046438,-172.09347775,0.00010266,2]
[348700989,1736727046449,-1895.08,0.00010266,2]
[348700990,1736727046460,-500.0,0.00010266,2]
[348700991,1736727046469,-500.0,0.00010266,2]
[348700992,1736727046479,-500.0,0.00010266,2]
[348700993,1736727046488,-500.0,0.00010266,2]
[348700994,1736727046498,-1390.54,0.00010266,2]
[348700995,1736727046507,-500.0,0.00010266,2]
[348700996,1736727046516,-500.0,0.00010266,2]
[348700997,1736727046526,-500.0,0.00010266,2]
[348700998,1736727046535,-500.0,0.00010266,2]
[348700999,1736727046545,-500.0,0.00010266,2]
[348701000,1736727046554,-500.0,0.00010266,2]
[348701001,1736727046564,-1640.42,0.00010266,2]
[348701002,1736727046573,-500.0,0.00010266,2]
[348701003,1736727046583,-500.0,0.00010266,2]
[348701004,1736727046593,-500.0,0.00010266,2]
[348701005,1736727046603,-500.0,0.00010266,2]
[348701006,1736727046612,-540.12,0.00010266,2]
[348701007,1736727046622,-500.0,0.00010266,2]
[348701008,1736727046631,-500.0,0.00010266,2]
[348701009,1736727046641,-500.0,0.00010266,2]
[348701010,1736727046651,-500.0,0.00010266,2]
[348701011,1736727046660,-500.0,0.00010266,2]
[348701012,1736727046673,-500.0,0.00010266,2]
[348701013,1736727046682,-500.0,0.00010266,2]
[348701014,1736727046692,-500.0,0.00010266,2]
[348701015,1736727046702,-500.0,0.00010266,2]
[348701016,1736727046711,-500.0,0.00010266,2]
[348701017,1736727046720,-500.0,0.00010266,2]
[348701018,1736727046730,-500.0,0.00010266,2]
[348701019,1736727046739,-500.0,0.00010266,2]
[348701020,1736727046749,-500.0,0.00010266,2]
[348701021,1736727046759,-531.9,0.00010266,2]
[348701022,1736727046768,-500.0,0.00010266,2]
[348701023,1736727046778,-500.0,0.00010266,2]
[348701024,1736727046788,-500.0,0.00010266,2]
[348701025,1736727046798,-500.0,0.00010266,2]
[348701026,1736727046807,-500.0,0.00010266,2]
[348701027,1736727046817,-500.0,0.00010266,2]
[348701028,1736727046827,-500.0,0.00010266,2]
[348701029,1736727046836,-500.0,0.00010266,2]
[348701030,1736727046846,-500.0,0.00010266,2]
[348701031,1736727046855,-500.0,0.00010266,2]
[348701032,1736727046865,-541.43,0.00010266,2]
[348701033,1736727046875,-500.0,0.00010266,2]
[348701034,1736727046884,-500.0,0.00010266,2]
[348701035,1736727046894,-500.0,0.00010266,2]
[348701036,1736727046903,-500.0,0.00010266,2]
[348701037,1736727046912,-500.0,0.00010266,2]
[348701038,1736727046922,-500.0,0.00010266,2]
[348701039,1736727046931,-500.0,0.00010266,2]
[348701040,1736727046941,-316.69,0.00010266,2]
[348701041,1736727046950,-500.0,0.00010266,2]
[348701042,1736727046960,-500.0,0.00010266,2]
[348701043,1736727046970,-500.0,0.00010266,2]
[348701044,1736727046979,-211.07718581,0.00010266,2]
[348701045,1736727046989,-500.0,0.00010266,2]
[348701046,1736727046999,-500.0,0.00010266,2]
[348701047,1736727047009,-500.0,0.00010266,2]
[348701048,1736727047018,-500.0,0.00010266,2]
[348701049,1736727047028,-500.0,0.00010266,2]
[348701050,1736727047037,-500.0,0.00010266,2]
[348701051,1736727047046,-500.0,0.00010266,2]
[348701052,1736727047057,-500.0,0.00010266,2]
[348701053,1736727047067,-500.0,0.00010266,2]
[348701054,1736727047076,-189.4984264,0.00010266,2]
[348701055,1736727047087,-500.0,0.00010266,2]
[348701056,1736727047098,-500.0,0.00010266,2]
[348701057,1736727047107,-580.08,0.00010269,2]
[348701058,1736727047116,-500.0,0.00010269,2]
[348701059,1736727047126,-1568.76,0.00010269,2]
[348701060,1736727047136,-500.0,0.00010269,2]